Cogmind - Beta 15 @@@ ROGUE MODE // 2025.10.09 @ 04:36:12 Player: NQH Result: Destroyed by exploding Fusion Modulator Performance ------------- Evolutions (5) 2500 Regions Visited (6) 1200 Robots Destroyed (62) 310 Value Destroyed (1933) 1933 Prototype IDs (2) 40 Alien Tech Used (0) 0 Bonus (0) 0 TOTAL SCORE: 5983 Bonus ------- None Cogmind --------- Core Integrity 0/1000 Matter 275/300 Energy 80/100 System Corruption 23% Temperature Cool (24) Movement Hovering (60) Location -5/Factory Parts ------- > --- POWER (1) -------- (None) > --- PROPULSION (4) --- Antigrav System > --- UTILITY (8) ------ (None) > --- WEAPON (4) ------- (None) > --- INVENTORY (5) ---- Improved Remote Datajack Peak State ------------ > --- POWER ------------ Cooled Ion Engine > --- PROPULSION ------- Advanced Treads Advanced Treads Advanced Treads > --- UTILITY ---------- Improved Heat Sink Improved Heat Sink Large Storage Unit Energy Well High-capacity Matter Pod Core Shielding Improved Utility Shielding Improved Medium Armor Plating > --- WEAPON ----------- Light EM Pulse Cannon Light EM Pulse Cannon Light EM Pulse Cannon Improved EM Pulse Cannon > --- INVENTORY -------- Cooled Ion Engine Improved Heat Sink Coolant Injector Large Storage Unit Large Battery Large Battery Energy Well Energy Well Energy Well Energy Well Core Shielding Improved Utility Shielding Improved Weapon Shielding EM Shield Light EM Pulse Cannon [Rating: 47] Favorites ----------- Power Micro Fission Core Engine Cooled Ion Engine Power Core Micro Fission Core Propulsion Advanced Treads Treads Advanced Treads Leg Improved Carbon-fiber Leg Wheel Compact Wheel Hover Unit Antigrav System Flight Unit VTOL Module Utility Hardened Light Armor Plating Device Improved Heat Sink Storage Large Storage Unit Processor Improved Target Analyzer Protection Hardened Light Armor Plating Weapon Enhanced Autogun Energy Gun High-powered Shock Rifle Energy Cannon Light EM Pulse Cannon Ballistic Gun Enhanced Autogun Launcher Grenade Launcher Special Weapon Improved Remote Datajack Build | -11 -10 -9 -8 -7 -6 -5 ------- Run | Yrd Mat Mat Mat Fac Fac Fac Slots Evolved 10 | . . 2 2 2 2 2 Power . | . . . . . . . Propulsion 2 | . . . . 2 . . Utility 6 | . . 2 2 . . 2 Weapon 2 | . . . . . 2 . Parts Attached 83 | 7 5 18 21 7 4 21 Power 9 | 1 1 4 2 . . 1 Engine 7 | 1 1 4 1 . . . Core 2 | . . . 1 . . 1 Reactor . | . . . . . . . Propulsion 22 | 4 . 4 6 2 . 6 Treads 7 | 2 . 1 2 2 . . Leg 6 | . . 2 4 . . . Wheel 3 | 2 . 1 . . . . Hover 4 | . . . . . . 4 Flight 2 | . . . . . . 2 Utility 30 | 1 2 4 12 3 . 8 Device 8 | . . . 3 1 . 4 Storage 6 | 1 1 . 2 . . 2 Processor 1 | . . . . . . 1 Hackware . | . . . . . . . Protection 15 | . 1 4 7 2 . 1 Artifact . | . . . . . . . Weapon 22 | 1 2 6 1 2 4 6 Energy Gun 2 | . . . . . . 2 Energy Cannon 5 | . . . . . 4 1 Ballistic Gun 13 | 1 1 6 1 2 . 2 Ballistic Cannon . | . . . . . . . Launcher 1 | . 1 . . . . . Special Weapon 1 | . . . . . . 1 Impact Weapon . | . . . . . . . Slashing Weapon . | . . . . . . . Piercing Weapon . | . . . . . . . Special Melee Weapon . | . . . . . . . Unidentified Prototypes 2 | . . 1 1 . . . Parts Lost 29 | . . 6 2 . . 21 Power 3 | . . 2 . . . 1 Propulsion 12 | . . 3 . . . 9 Utility 6 | . . . 2 . . 4 Weapon 8 | . . 1 . . . 7 Highest Loss Streak 8 | . . 2 2 . . 8 To Critical Strikes . | . . . . . . . Average Backups 9 | 1 9 14 14 13 12 4 Power . | . . . . 1 1 . Propulsion 1 | 1 1 . 2 . . 1 Utility 5 | . 5 8 6 6 9 2 Weapon 3 | . 2 5 4 5 1 . Tool/Special . | . . . . . . . Unused Backups 17 | . . 4 . 2 1 10 Power 1 | . . . . . . 1 Propulsion . | . . . . . . . Utility 8 | . . . . . . 8 Weapon 7 | . . 4 . 2 1 . Tool/Special 1 | . . . . . . 1 Average Slot Usage (%) 68 | . 93 94 99 99 97 31 Engine 5 | . 14 10 8 7 6 . Core 1 | . . . . . . 4 Treads 5 | . . . . 29 26 3 Leg 3 | . . 4 17 . . . Wheel 5 | . 28 16 . . . . Flight 3 | . . . . . . 7 Device 3 | . . . 8 7 6 1 Storage 9 | . 14 11 17 15 13 3 Protection 16 | . 8 32 26 23 20 2 Energy Cannon 2 | . . . . . 20 3 Ballistic Gun 10 | . 23 19 18 15 2 . Peak Build Rating 47 | 5 10 20 30 38 39 47 Average Rating 20 | 3 8 14 28 36 38 17 On Entrance 20 | . 5 10 20 30 38 39 Naked Turns 39 | . . . . . . 39 Heaviest Build 68 | 9 31 46 50 50 59 68 Greatest Support 88 | 40 32 32 44 88 88 88 Greatest Overweight (x) 13 | . . 13 2 . . 2 Average Overweight (x) . | . . 1 1 . . . Largest Inventory Capacity 15 | 8 15 15 15 15 15 15 Average Capacity 11 | 7 12 15 15 15 15 6 Most Carried 15 | 3 15 15 15 15 15 15 Average Carried 9 | 1 9 14 14 13 11 4 Final Capacity 15 | 8 15 15 15 15 15 5 Final Carried 15 | 2 15 15 15 15 12 1 Class Distribution -------------------- 56% | Mutant 27% | Sprinter 8% | Tank 6% | Scavenger-Mutant Dominant Class ---------------- Mutant | -10/Materials Mutant | -9/Materials Mutant | -8/Materials Mutant | -7/Factory Tank | -6/Factory Sprinter | -5/Factory Resources | -11 -10 -9 -8 -7 -6 -5 ----------- Run | Yrd Mat Mat Mat Fac Fac Fac Matter Collected 2430 | 148 48 579 1078 201 . 376 Remotely . | . . . . . . . Salvage Created 2442 | . 48 740 1109 211 . 334 Parts 141 | . 4 50 59 14 . 14 Haulers Intercepted 3 | . . 1 2 . . . Recyclers Shooed 6 | . 1 4 1 . . . Parts Field Recycled . | . . . . . . . Retrieved Matter . | . . . . . . . Parts Self-Destructed . | . . . . . . . Prevented . | . . . . . . . Kills | -11 -10 -9 -8 -7 -6 -5 ------- Run | Yrd Mat Mat Mat Fac Fac Fac Combat Hostiles Destroyed 49 | . 1 21 16 4 . 7 Guns 45 | . 1 21 16 4 . 3 Cannons 1 | . . . . . . 1 AOE 3 | . . . . . . 3 Classes Destroyed 13 | . 2 4 5 1 . 1 Worker 1 | . . . 1 . . . Builder 2 | . . . 2 . . . Tunneler 1 | . . . . 1 . . Hauler 3 | . . 1 2 . . . Recycler 4 | . . 1 3 . . . Mechanic 1 | . 1 . . . . . Watcher 1 | . . . 1 . . . Swarmer 14 | . 1 10 2 . . 1 Grunt 25 | . . 8 11 2 . 4 Duelist 1 | . . . 1 . . . Sentry 6 | . . 3 1 2 . . Hunter 1 | . . . 1 . . . Programmer 2 | . . . . . . 2 Best Kill Streak 8 | . 2 8 4 2 . 4 Combat Bots Only 8 | . 1 8 3 2 . 4 Max Kills in Single Turn 3 | . 1 1 2 1 . 3 Gunslinging . | . . . . . . . Exploded 3 | . . . . . . 3 Melee . | . . . . . . . Uniques/NPCs Destroyed . | . . . . . . . Combat | -11 -10 -9 -8 -7 -6 -5 -------- Run | Yrd Mat Mat Mat Fac Fac Fac Hostile Shots Fired 493 | . 25 141 74 68 . 185 Missed 136 | . 10 39 19 18 . 50 Hits 357 | . 15 102 55 50 . 135 Melee 5 | . . . 5 . . . Projectile 352 | . 15 102 50 50 . 135 AOE 2 | . . . . . . 2 Critical Strikes 21 | . . 4 6 . . 11 Actively Blocked 1 | . . . . . . 1 Damage Taken 5876 | . 123 1172 940 406 . 3235 Core 1330 | . 23 175 42 26 . 1064 Absorbed by Shields 40 | . . . . . . 40 Redirected to Shielding 221 | . . . 9 6 . 206 Core Remaining (%) 89 | 100 90 56 92 96 100 . Volleys Fired 266 | . 14 109 76 14 1 52 Largest 4 | . 2 2 2 2 4 4 Hottest 237 | . 40 43 50 53 224 237 Shots Fired 458 | . 28 165 151 28 4 82 Gun 411 | . 28 165 151 28 . 39 Cannon 46 | . . . . . 4 42 Launcher . | . . . . . . . Special 1 | . . . . . . 1 Kinetic 410 | . 28 165 151 28 . 38 Thermal . | . . . . . . . Explosive . | . . . . . . . Electromagnetic 47 | . . . . . 4 43 Robot Hit Streak 13 | . 4 9 11 10 . 13 Robot Miss Streak 5 | . 5 4 5 4 . 5 Penetration Max . | . . . . . . . Secondary Targets 2 | . . 1 1 . . . Max Gunslinging Chain 1 | . . 1 1 . . . Shots Hit Robots 292 | . 12 101 101 22 . 56 Core Hits 129 | . 4 41 42 19 . 23 Critical Kills 1 | . 1 . . . . . Critical Parts Destroyed 3 | . . 1 2 . . . Critical Strikes 4 | . 1 1 2 . . . Destroy 4 | . 1 1 2 . . . Melee Attacks . | . . . . . . . Impact . | . . . . . . . Slashing . | . . . . . . . Piercing . | . . . . . . . Sneak Attacks . | . . . . . . . Combat Hostiles . | . . . . . . . Follow-up Attacks . | . . . . . . . Damage Inflicted 4663 | . 117 972 1693 418 . 1463 Guns 3778 | . 115 943 1693 418 . 609 Cannons 273 | . . . . . . 273 Explosions 502 | . . . . . . 502 Melee . | . . . . . . . Ramming 110 | . 2 29 . . . 79 Kinetic 3778 | . 115 943 1693 418 . 609 Thermal 502 | . . . . . . 502 Explosive . | . . . . . . . Electromagnetic 273 | . . . . . . 273 Impact . | . . . . . . . Slashing . | . . . . . . . Piercing . | . . . . . . . Highest Corruption 23 | . . . 6 . . 23 Average Corruption 11 | . . . 5 . . 12 Corruption Purged . | . . . . . . . Corruption Blocked . | . . . . . . . Effects 96 | . . . 8 . . 88 Message Errors 29 | . . . 2 . . 27 Matter Fused 21 | . . . . . . 21 Heat Flow Errors 10 | . . . 1 . . 9 Energy Discharges 10 | . . . 2 . . 8 Data Loss (minor) 8 | . . . 1 . . 7 Data Loss (major) 7 | . . . 1 . . 6 Misfires 2 | . . . . . . 2 Alerts 1 | . . . . . . 1 Misdirections 4 | . . . . . . 4 Weapon Failures 4 | . . . 1 . . 3 Overload Shots . | . . . . . . . Overflow Damage 7 | . . . . . . 7 Projectiles . | . . . . . . . Explosions 7 | . . . . . . 7 Melee . | . . . . . . . Knockbacks . | . . . . . . . Impact . | . . . . . . . Kinetic . | . . . . . . . Secondary . | . . . . . . . Self-Inflicted Damage 396 | . 1 14 . . . 381 Shots 4 | . . . . . . 4 Rammed 25 | . 1 1 . . . 23 Targets Rammed 25 | . 1 1 . . . 23 Kicked . | . . . . . . . Crushed . | . . . . . . . Highest Temperature 312 | . 20 312 173 7 84 240 Average Temperature 86 | . 8 106 30 5 52 70 Received Heat Transfer 1050 | . . 444 387 138 . 81 Effects 4 | . . 4 . . . . Energy Bleed 1 | . . 1 . . . . Interference 3 | . . 3 . . . . Siege Activations . | . . . . . . . Martial Activations . | . . . . . . . Shielding Activations . | . . . . . . . Robots Disrupted . | . . . . . . . Combat Hostiles . | . . . . . . . Robots Corrupted . | . . . . . . . Combat Hostiles . | . . . . . . . Parts Fried 1 | . . . . . . 1 Impact Corruptions . | . . . . . . . Robots Melted . | . . . . . . . Combat Hostiles . | . . . . . . . Parts Melted 1 | . . . . . . 1 Heat Transferred 300 | . . . . . . 300 Parts Sabotaged . | . . . . . . . Parts Stolen . | . . . . . . . Parts Stripped . | . . . . . . . Power Chain Reactions . | . . . . . . . Alert | -11 -10 -9 -8 -7 -6 -5 ------- Run | Yrd Mat Mat Mat Fac Fac Fac Maximum Alert Level 1 | . . . . . . 1 Low Security (%) 99 | 100 100 100 100 100 100 99 Level 1 . | . . . . . . . Level 2 . | . . . . . . . Level 3 . | . . . . . . . Level 4 . | . . . . . . . Level 5 . | . . . . . . . High Security . | . . . . . . . Max Security . | . . . . . . . Peak Influence 209 | . 55 154 116 42 . 209 Initial 41 | . . 1 22 41 . . Average 31 | . 7 72 41 11 . 18 Influence Increases 1527 | . 55 562 446 115 . 349 Destroy 0b10 Robot/C 980 | . 20 420 320 80 . 140 Destroy 0b10 Robot/NC 65 | . 5 10 45 5 . . Destroy Leader 228 | . . 102 76 30 . 20 Disable Machine 90 | . . 15 . . . 75 Destroy Structure 59 | . . . 5 . . 54 Lose Combat Pursuer 105 | . 30 15 . . . 60 Influence Decreases 1527 | . 50 512 409 207 . 349 Entered New Map 88 | . . 4 33 51 . . Time Decay 1245 | . 50 448 356 156 . 235 Lost Part 194 | . . 60 20 . . 114 Squads Dispatched 17 | . . 4 5 1 . 7 Investigation 2 | . . 1 1 . . . Extermination 4 | . . . . . . 4 Reinforcement 4 | . . 3 . 1 . . Assault . | . . . . . . . Garrison 7 | . . . 4 . . 3 Intercept . | . . . . . . . Searches Triggered . | . . . . . . . Construction Impeded 1 | . . 1 . . . . Haulers Reinforced . | . . . . . . . Active Scanning Responses . | . . . . . . . Cargo Convoy Interrupts . | . . . . . . . Stealth | -11 -10 -9 -8 -7 -6 -5 --------- Run | Yrd Mat Mat Mat Fac Fac Fac Distress Signals 4 | . . 1 3 . . . Communications Jammed . | . . . . . . . Distress Signals . | . . . . . . . Times Spotted 81 | . 4 30 26 5 . 16 Peak Tracking Total 8 | . 3 8 4 2 . 5 Tactical Retreats 4 | . 1 1 . . . 2 Traps | -11 -10 -9 -8 -7 -6 -5 ------- Run | Yrd Mat Mat Mat Fac Fac Fac Traps Triggered 2 | . 1 1 . . . . Indirectly . | . . . . . . . Trap Hack Attempts . | . . . . . . . Triggered . | . . . . . . . Disarmed . | . . . . . . . Reprogrammed . | . . . . . . . Reused . | . . . . . . . Traps Extracted . | . . . . . . . Installed . | . . . . . . . Triggered . | . . . . . . . Machines | -11 -10 -9 -8 -7 -6 -5 ---------- Run | Yrd Mat Mat Mat Fac Fac Fac Machines Disabled 6 | . . 1 . . . 5 Max in Single Turn 5 | . . 1 . . . 5 Machines Repaired . | . . . . . . . Machines Dismantled . | . . . . . . . Machines Sabotaged . | . . . . . . . Overloaded Fab Kills . | . . . . . . . Hacking | -11 -10 -9 -8 -7 -6 -5 --------- Run | Yrd Mat Mat Mat Fac Fac Fac Machines Accessed 5 | . 3 . 2 . . . Terminals 2 | . 2 . . . . . Fabricators . | . . . . . . . Repair Stations . | . . . . . . . Recycling Units 2 | . 1 . 1 . . . Scanalyzers . | . . . . . . . Garrison Access 1 | . . . 1 . . . Total Hacks 11 | . 5 . 6 . . . Successful 6 | . 4 . 2 . . . Failed 5 | . 1 . 4 . . . Catastrophic 2 | . . . 2 . . . Database Lockouts . | . . . . . . . Manual . | . . . . . . . Terminals 4 | . 4 . . . . . Fabricators . | . . . . . . . Repair Stations . | . . . . . . . Recycling Units 3 | . 1 . 2 . . . Scanalyzers . | . . . . . . . Garrison Access 4 | . . . 4 . . . Terminal Hacks 3 | . 3 . . . . . Record 3 | . 3 . . . . . Fabricator Hacks . | . . . . . . . Repair Station Hacks . | . . . . . . . Recycling Unit Hacks 2 | . 1 . 1 . . . Retrieve Matter 2 | . 1 . 1 . . . Scanalyzer . | . . . . . . . Garrison Access Hacks 1 | . . . 1 . . . Unlock Access 1 | . . . 1 . . . Unauthorized Hacks . | . . . . . . . Terminals . | . . . . . . . Fabricators . | . . . . . . . Repair Stations . | . . . . . . . Recycling Units . | . . . . . . . Scanalyzers . | . . . . . . . Garrison Access . | . . . . . . . Data Cores Recovered . | . . . . . . . Used . | . . . . . . . Hacking Detections 2 | . 1 . 1 . . . Full Trace Events 1 | . . . 1 . . . Feedback Events . | . . . . . . . Feedback Blocked . | . . . . . . . Robot Schematics Acquired . | . . . . . . . Robots Built . | . . . . . . . Authchips . | . . . . . . . Time . | . . . . . . . Total Robot Build Rating . | . . . . . . . Part Schematics Acquired . | . . . . . . . Parts Built . | . . . . . . . Authchips . | . . . . . . . Time . | . . . . . . . Total Part Build Rating . | . . . . . . . Parts Repaired . | . . . . . . . Time . | . . . . . . . Parts Recycled . | . . . . . . . Recycled Matter . | . . . . . . . Retrieved Matter . | . . . . . . . Retrieved Components . | . . . . . . . Parts Scanalyzed . | . . . . . . . Part Schematics Acquired . | . . . . . . . Parts Damaged . | . . . . . . . Bothacking | -11 -10 -9 -8 -7 -6 -5 ------------ Run | Yrd Mat Mat Mat Fac Fac Fac Used RIF Installer . | . . . . . . . Robots Hacked . | . . . . . . . Non-combat . | . . . . . . . Combat . | . . . . . . . Robot Hacks Applied . | . . . . . . . Relay Couplers Released . | . . . . . . . Fabnet Peak Effective % . | . . . . . . . Robots Rewired . | . . . . . . . Allies Hacked . | . . . . . . . Hacks Repelled . | . . . . . . . Allies | -11 -10 -9 -8 -7 -6 -5 -------- Run | Yrd Mat Mat Mat Fac Fac Fac Total Allies . | . . . . . . . Largest Group . | . . . . . . . Highest-Rated Group . | . . . . . . . Highest-Rated Ally . | . . . . . . . Total Orders . | . . . . . . . Ally Attacks . | . . . . . . . Total Damage . | . . . . . . . Kills . | . . . . . . . Allies Corrupted . | . . . . . . . Allies Melted . | . . . . . . . Intel | -11 -10 -9 -8 -7 -6 -5 ------- Run | Yrd Mat Mat Mat Fac Fac Fac Active Infowar (turns) . | . . . . . . . Robot Analysis Total . | . . . . . . . Derelict Logs Recovered . | . . . . . . . Drone Launches . | . . . . . . . Drone Recoveries . | . . . . . . . Exploration | -11 -10 -9 -8 -7 -6 -5 ------------- Run | Yrd Mat Mat Mat Fac Fac Fac Turns Passed 5778 | 80 352 1194 977 609 96 2470 Spaces Moved 2320 | 47 281 650 373 358 59 552 Core 68 | 3 . 2 . . . 63 Treads 605 | 33 . . 4 358 59 151 Legs 451 | . . 82 369 . . . Wheels 858 | 11 281 566 . . . . Hover 192 | . . . . . . 192 Flight 146 | . . . . . . 146 Fastest Speed 32 | 50 100 105 190 145 145 32 Average Speed 129 | 138 100 131 192 145 145 84 Slowest Speed 700 | 160 100 700 305 145 145 225 Overloaded Moves . | . . . . . . . Propulsion Burnouts . | . . . . . . . Robots Hopped 1 | . . . . . . 1 Potential Cave-ins . | . . . . . . . Cave-ins Triggered . | . . . . . . . Exploration Rate (%) 19 | 4 52 33 26 8 1 10 Regions Visited 6 Branch Regions . Pre-discovered Areas . | . . . . . . . Known Exits Taken . | . . . . . . . Unknown Exits Taken 6 | 1 1 1 1 1 1 . Scrap Searched . | . . . . . . . Spaces Dug . | . . . . . . . Terrain Destroyed 27 | . . . . . . 27 Melee . | . . . . . . . Projectile . | . . . . . . . AOE 27 | . . . . . . 27 Terrain Rammed . | . . . . . . . Walls Destroyed . | . . . . . . . Machines Disabled . | . . . . . . . Actions | -11 -10 -9 -8 -7 -6 -5 --------- Run | Yrd Mat Mat Mat Fac Fac Fac Total 4760 | 61 327 849 541 428 68 2486 Wait 1919 | . 3 48 27 29 . 1812 Move 2312 | 46 280 649 372 357 58 550 Hop 1 | . . . . . . 1 Pick Up 56 | 2 17 9 11 7 2 8 Fast Attach 41 | 5 3 9 8 2 . 14 Attach 39 | 4 1 4 10 5 4 11 Detach 23 | 4 1 . 9 3 . 6 Swap 20 | . 2 5 9 2 . 2 Drop 58 | . 5 15 19 9 3 7 Fire 266 | . 14 109 76 14 1 52 Melee . | . . . . . . . Ram 22 | . 1 1 . . . 20 Kick . | . . . . . . . Crush 3 | . . . . . . 3 Escape Stasis . | . . . . . . . Rewire . | . . . . . . . Trap . | . . . . . . . Miscellaneous . | . . . . . . . Route ------- -11/Scrapyard -10/Materials (discovered 2 exits: [*Mat] / [*Min]) -9/Materials -8/Materials (discovered 2 exits: *Fac / Gar) -7/Factory -6/Factory -5/Factory History --------- Turn | Location | Event 43 | -11/Scrapyard | Discovered new exit (range 13) 81 | -11/Scrapyard | Entered Materials 216 | -10/Materials | Discovered new exit (range 11) 328 | -10/Materials | Build established: Mutant 416 | -10/Materials | Discovered new exit (range 16) 433 | -10/Materials | Entered another Materials area 433 | -9/Materials | Evolved 2 slots: Utility x2 904 | -9/Materials | Destroyed 8 combat bots 1588 | -9/Materials | Discovered new exit (range 16) 1627 | -9/Materials | Entered another Materials area 1627 | -8/Materials | Evolved 2 slots: Utility x2 2105 | -8/Materials | Garrison activated, responded to threat 2273 | -8/Materials | Garrison activated, responded to threat 2406 | -8/Materials | Identified exit to Garrison 2575 | -8/Materials | Discovered new exit (range 7) 2604 | -8/Materials | Entered Factory 2604 | -7/Factory | Evolved 2 slots: Propulsion x2 3198 | -7/Factory | Discovered new exit (range 11) 3213 | -7/Factory | Entered another Factory area 3213 | -6/Factory | Evolved 2 slots: Weapon x2 3287 | -6/Factory | Discovered new exit (range 15) 3309 | -6/Factory | Entered another Factory area 3309 | -5/Factory | Evolved 2 slots: Utility x2 3530 | -5/Factory | Build established: Tank 3701 | -5/Factory | Garrison activated, responded to threat 3737 | -5/Factory | Released all parts (10) 3739 | -5/Factory | System corruption reached 10% 3766 | -5/Factory | Lost 8 parts (3n2u3w) 3775 | -5/Factory | Core integrity fell below 50% 4326 | -5/Factory | Build established: Sprinter 5620 | -5/Factory | Core integrity fell below 20% 5656 | -5/Factory | Lost 4 parts (3n1w) 5779 | -5/Factory | Destroyed by exploding Fusion Modulator Last Messages --------------- lost. 05728_ Antigrav System destroyed. 05733_ P-70 Sage destroyed. 05737_ Acquired 56 matter. 05738_ Acquired Imp. Remote Datajack. 05750_ Acquired Force Field. 05751_ System corrupted: Matter fused (-6). 05767_ System corrupted: FCS attempts to trigger Hvy. Machine Gun. 05767_ System corrupted: Hvy. Machine Gun misfires. 05772_ Slammed into R-10 Processor. 05772_ Destabilizing: System corrupted (+1). 05779_ Fusion Modulator explodes. 05779_ Force Field destroyed. 05779_ Hvy. Machine Gun destroyed. 05779_ Mic. Fission Core destroyed. 05779_ Adv. Recoil Stabilizer destroyed. 05779_ P-70 Sage destroyed. 05779_ Fusion Modulator explodes. 05779_ U-05 Engineer destroyed. Map ----- +----------------------------------------------------+ | ?????????????????????????????????????????????????? | | ?????????????????????????????????????????????????? | | ?????????????????????????????????????????????????? | | ?????????????????????????????????????????????????? | | ?????????????????????????????????????????????????? | | ?????????????????????????????????????????????????? | | ?????????????????????????????????????????????????? | | ?????????????????????????????????????????????????? | | ?????????????????????????????????????????????????? | | ?????????????????????????????????########????????? | | ??????????????????????? ???????# #????????? | | ????????????????????? ???????# ! #????????? | | ??????????????????# ???????# """#????????? | | ??????????????????# k???????# Y"#????????? | | ??????????????????# ???????# """#????????? | | ??????????????????# ???????# #???###### | | ??????????????????# ???????####+####### # | | ??????????????????# +?????????# + "" # | | ??????????????????# #?????????# #### "F # | | ??????????????????# ########### #??# "" # | | ??????????????????# #??# "" # | | ?????????????????????#;;;;;; ;;###### #??# # | | ?????????????????????# ;;;;;;;|###### #### # | | ?????????????????????# ; p =%= # + # | | ?????????????????????# [% # # # | | ?????????????????????# ; @ !# ###### | | ?????????????????????# # # | | ?????????????????????# ; # # | | ?????????????????????#;; + # | | ???????????????????? ; # # | | ???????????????????##### + # | | ???????????????????????# # # | | ???????????????????????# # # | | ???????????????????????# # | | ???????????????????????# # | | ???????????????????????############## | | ????????????????????????????????????# | | ????????????????????????????????????# | | ????????????????????????????????????# ######## | | ????????????????????????????????????# ???????? | | ????????????????????????????????????# ???????? | | ????????????????????????????????????# ???????? | | ????????????????????????????????????# ????????? | | ?????????????????????????????????????? ??????????? | | ?????????????????????????????????????????????????? | | ?????????????????????????????????????????????????? | | ?????????????????????????????????????????????##### | | ?????????????????????????????????????? | | ?????????????????????????????????????? | | ?????????????????????????????????????? | +----------------------------------------------------+ Best States ------------- Heat Dissipation 82 Energy Generation 23 Energy Capacity 830 Matter Stores 500 Matter Capacity 500 Sight Range 16 Terrain Scan Density 10 Armor Coverage 450 Core Shielding 20 Utility Shielding 66 Weapon Shielding 66 Evasion (%) 63 Recoil Reduction 6 Item Schematics ----------------- None Robot Schematics ------------------ None Fabricated ------------ Nothing Repaired ---------- Nothing Alien Tech Used ----------------- None Achievements -------------- None Challenges ------------ None Game ------ Seed GunRecyclingPropulsion Manual? 0 Play Time 00:49:56 Cumulative 25.4 hours Start 2025.10.09 @ 03:49:43 End 2025.10.09 @ 04:36:12 Sessions 1 Manual Loads 0 Difficulty Rogue Special Mode None Game No. 88 Rogue 88 Adventurer 0 Explorer 0 Win Type - Total 0 Types 0/0/0/0/0/0/0/0/0/0 Lore% 10 Gallery% 27 Achievement% 25 Wizard Run 0 Options --------- Layout 1 ASCII 0 Keyboard 1 Movement Vi Keybinds 0 Fullscreen 1 Font 16/SmallcapsGlow Map View 55x38 Zoom Use 0% Tactical HUD 1 Map Filters NONE Filters NONE Steam 1 RUN: 406e4630-f1ec-4939-8c8e-13d29e70b933